bitfinex/quotes_BTCUSD_20250303
["timestamp","ask_amount","ask_price","bid_price","bid_amount"]
[1741034845886,0.41557505,86140.0,86081.0,0.3]
[1741034846087,0.232187,86138.0,86112.0,0.0766]
[1741034846287,0.232195,86135.0,86115.0,0.232245]
[1741034846542,0.232191,86136.0,86116.0,0.23368174]
[1741034846859,0.00203173,86130.0,86113.0,0.0466]
[1741034847069,0.01758104,86131.0,86113.0,0.0466]
[1741034847267,0.015549,86131.0,86113.0,0.04803804]
[1741034847468,0.232207,86130.0,86113.0,0.0466]
[1741034847713,0.01666775,86131.0,86120.0,0.232232]
[1741034847906,0.01666775,86131.0,86116.0,0.007]
[1741034848108,0.232218,86126.0,86116.0,0.007]
[1741034848309,0.01666775,86131.0,86116.0,0.007]
[1741034848661,0.232242,86117.0,86116.0,0.007]
[1741034848863,0.232242,86117.0,86090.0,0.081746]
[1741034848864,0.232298,86096.0,86090.0,0.0468]
[1741034849207,0.3,86127.0,86090.0,0.0468]
[1741034849348,0.00203256,86126.0,86113.0,0.002]
[1741034849548,0.232247,86116.0,86113.0,0.002]
[1741034849748,0.232215,86127.0,86091.0,0.00143889]
[1741034849995,0.015549,86131.0,86100.0,0.232285]
[1741034850269,0.232241,86118.0,86093.0,0.3]
[1741034850495,0.01583715,86131.0,86096.0,0.3]
[1741034850717,0.01583715,86131.0,86092.0,0.17900091]
[1741034850718,0.34831,86130.0,86093.0,0.3]
[1741034850942,0.3,86129.0,86092.0,0.17900091]
[1741034851160,0.00203243,86128.0,86092.0,0.17900091]
[1741034851374,0.232226,86123.0,86099.0,0.232288]
[1741034851583,0.01583715,86131.0,86092.0,0.17900091]
[1741034851805,0.00203212,86130.0,86091.0,0.003]
[1741034852018,0.232263,86109.0,86091.0,0.003]
[1741034852236,0.01583715,86131.0,86091.0,0.003]
[1741034852446,0.232251,86114.0,86093.0,0.232304]
[1741034852581,0.01583715,86131.0,86091.0,0.003]
[1741034852799,0.01583715,86131.0,86089.0,0.0003388]
[1741034852800,0.232315,86090.0,86089.0,0.0003388]
[1741034852998,0.232302,86095.0,86089.0,0.0003388]
[1741034853255,0.232299,86096.0,86089.0,0.0003388]
[1741034853465,0.3,86119.0,86089.0,0.0003388]
[1741034853466,0.232254,86113.0,86089.0,0.0003388]
[1741034853579,0.232258,86111.0,86091.0,0.232309]
[1741034853790,0.04505642,86119.0,86089.0,0.0003388]
[1741034854003,0.232234,86120.0,86089.0,0.0003388]
[1741034854004,0.232239,86118.0,86089.0,0.17933971]
[1741034854204,0.232268,86108.0,86089.0,0.17933971]
[1741034854465,0.04446758,86119.0,86093.0,0.232304]
[1741034854667,0.001,86096.0,86095.0,0.532301]
[1741034854822,0.00011873,86119.0,86106.0,0.3]
[1741034855034,0.00011873,86119.0,86108.0,0.3]
[1741034855258,0.232258,86112.0,86107.0,0.17900091]
[1741034855433,0.232243,86117.0,86107.0,0.17900091]
[1741034855652,0.00011873,86119.0,86107.0,0.17900091]
[1741034855653,0.232266,86108.0,86107.0,0.17900091]
[1741034855856,0.00011873,86119.0,86107.0,0.17900091]
[1741034856259,0.001,86108.0,86107.0,0.17900091]
[1741034856625,0.232264,86109.0,86107.0,0.17900091]
[1741034856827,0.233266,86108.0,86107.0,0.18500091]
[1741034857027,0.001,86108.0,86107.0,0.1560009]
[1741034857491,0.00011873,86119.0,86107.0,0.1500009]
[1741034857850,0.001,86109.0,86107.0,0.1570409]
[1741034858040,0.001,86109.0,86108.0,1.072566]
[1741034858241,0.001,86109.0,86108.0,1.2225669]
[1741034858776,0.001,86109.0,86108.0,0.9903009]
[1741034859049,0.00011873,86119.0,86113.0,0.3]
[1741034859243,0.00011873,86119.0,86109.0,0.3]
[1741034859822,0.00011873,86119.0,86108.0,0.6903009]
[1741034860227,0.00011873,86119.0,86108.0,0.6973009]
[1741034860620,0.00011873,86119.0,86109.0,4e-05]
[1741034861560,0.00111873,86119.0,86109.0,4e-05]
[1741034862295,0.232261,86110.0,86109.0,4e-05]
[1741034862647,0.232266,86108.0,86107.0,4e-05]
[1741034862865,0.232315,86090.0,86089.0,0.0003388]
[1741034863432,0.41540535,86110.0,86089.0,0.0003388]
[1741034863693,0.048,86116.0,86089.0,0.0003388]
[1741034863694,0.00890881,86116.0,86089.0,0.0003388]
[1741034863901,0.232315,86090.0,86089.0,0.0003388]
[1741034864238,0.232315,86090.0,86089.0,8e-07]
[1741034864537,0.232315,86090.0,86089.0,0.00039673]
[1741034864732,0.00860882,86090.0,86048.0,0.1500009]
[1741034864975,0.232425,86049.0,86048.0,0.15011971]
[1741034865181,0.232425,86049.0,86048.0,0.00011881]
[1741034865777,0.232425,86049.0,86048.0,8.1e-07]
[1741034865974,0.27754111,86049.0,86048.0,8.1e-07]
[1741034866223,0.04511611,86049.0,86048.0,8.1e-07]
[1741034866426,0.29179672,86087.0,86048.0,8.1e-07]
[1741034866648,0.232425,86049.0,86048.0,8.1e-07]
[1741034866842,0.232425,86049.0,86048.0,0.00404081]
[1741034867260,0.232466,86034.0,86033.0,0.07822272]
[1741034867463,0.232466,86034.0,86033.0,0.07834155]
[1741034867609,0.00880608,86034.0,86002.0,0.000339]
[1741034867813,0.232533,86009.0,86008.0,0.01566887]
[1741034868216,0.532533,86009.0,86008.0,8.7e-07]
[1741034869054,0.232533,86009.0,86008.0,8.7e-07]
[1741034869258,0.232533,86009.0,86008.0,4.087e-05]
[1741034869635,0.00886122,86034.0,86008.0,4.087e-05]
[1741034869822,0.232533,86009.0,86008.0,4.087e-05]
[1741034870225,0.41540535,86040.0,86008.0,4.087e-05]
[1741034870434,0.00203467,86031.0,86008.0,4.087e-05]
[1741034871131,0.232533,86009.0,86008.0,8.087e-05]
[1741034871461,0.232533,86009.0,86008.0,0.00108087]
[1741034872068,0.41540535,86040.0,86008.0,0.00108087]
[1741034872263,0.232504,86020.0,85998.0,0.20532166]
[1741034872467,0.00011865,86020.0,85995.0,0.0796]
[1741034872668,0.00011865,86020.0,86000.0,0.232558]
[1741034872868,0.10297033,86012.0,86004.0,0.3]
[1741034873509,0.10297033,86012.0,86001.0,0.1500009]
[1741034873938,0.10297033,86012.0,86002.0,0.3]
[1741034874134,0.10297033,86012.0,86004.0,4e-05]
[1741034874387,0.232544,86005.0,86004.0,4e-05]
[1741034874592,0.532544,86005.0,86004.0,4e-05]
[1741034874994,0.29179672,86011.0,85969.0,0.2305009]
[1741034874995,0.232582,85991.0,85969.0,0.2305009]
[1741034875197,0.232582,85991.0,85969.0,0.1500009]
[1741034875562,0.41540535,86000.0,85969.0,0.1500009]
[1741034875723,0.23081303,85999.0,85950.0,0.0003392]
[1741034875930,0.232631,85973.0,85950.0,0.0003392]
[1741034876172,0.3,85996.0,85972.0,0.0159464]
[1741034876346,0.41540535,86000.0,85972.0,0.0159464]
[1741034876691,0.232619,85978.0,85972.0,0.0159464]
[1741034877011,0.232631,85973.0,85972.0,0.0159464]
[1741034877209,0.3,85999.0,85972.0,0.0159464]
[1741034877210,0.232479,86029.0,85975.0,0.1]
[1741034877500,0.0794,86055.0,85972.0,0.80624729]
[1741034877501,0.00859098,86046.0,85982.0,0.0819]
[1741034877653,0.00203433,86045.0,86001.0,0.3]
[1741034878015,0.00203433,86045.0,85982.0,0.0819]
[1741034878016,0.56335248,86030.0,85997.0,0.1500009]
[1741034878208,0.10297033,86007.0,85997.0,0.1500009]
[1741034878571,0.10297033,86007.0,85998.0,0.3]
[1741034878959,0.10297033,86007.0,85997.0,0.1500009]
[1741034879158,0.103366,86007.0,85997.0,0.1490009]
[1741034879371,0.103366,86007.0,85983.0,0.5403]
[1741034879583,0.00203465,86006.0,85982.0,0.0819]
[1741034879808,0.00203465,86006.0,85968.0,0.0819]
[1741034879809,0.232623,85976.0,85968.0,0.0819]
[1741034880006,0.41540535,86000.0,85968.0,0.0819]
[1741034880276,0.232623,85976.0,85962.0,0.1490009]
[1741034880475,0.232623,85976.0,85961.0,0.0003388]
[1741034880956,0.24119997,85976.0,85961.0,0.0003388]
[1741034881159,0.53266,85962.0,85961.0,7.5e-07]
[1741034881360,0.23269,85951.0,85950.0,9.5e-07]
[1741034881932,0.23272,85940.0,85939.0,2e-07]
[1741034882134,0.41540535,85950.0,85920.0,0.08375836]
[1741034882333,0.232771,85921.0,85920.0,0.00255836]
[1741034882555,0.3,85949.0,85920.0,0.00255836]
[1741034882759,0.232771,85921.0,85920.0,0.00255836]
[1741034883752,0.232771,85921.0,85920.0,0.00259836]
[1741034884359,0.1562,85946.0,85920.0,0.00259836]
[1741034884360,0.232736,85935.0,85920.0,0.00259836]
[1741034884565,0.232726,85938.0,85920.0,0.00259836]
[1741034884771,0.41540535,85950.0,85920.0,0.00259836]
[1741034884772,0.43365583,85970.0,85922.0,0.3]
[1741034884966,0.43365583,85970.0,85920.0,0.00259836]
[1741034884967,0.00203626,85969.0,85923.0,0.8209009]
[1741034885170,0.05353121,85970.0,85948.0,0.232696]
[1741034885427,0.04494375,85970.0,85952.0,0.232685]
[1741034885545,0.04494375,85970.0,85951.0,0.0788]
[1741034885546,0.00011864,85970.0,85951.0,0.0788]
[1741034885755,0.232646,85968.0,85951.0,0.0788]
[1741034885955,0.04462956,85970.0,85928.0,0.1]
[1741034885956,0.00203562,85967.0,85938.0,0.0823]
[1741034886163,0.232723,85939.0,85938.0,0.0823]
[1741034886523,0.41540535,85950.0,85921.0,0.0823]
[1741034886680,0.232736,85935.0,85921.0,0.0823]
[1741034886878,0.232763,85924.0,85920.0,0.00259836]
[1741034887130,0.00861727,85949.0,85920.0,0.00259836]
[1741034887333,0.2287774,85959.0,85907.0,0.0801384]
[1741034887334,0.232756,85927.0,85907.0,0.06007596]
[1741034887661,0.23740782,85959.0,85892.0,0.6893009]
[1741034887662,0.41540535,85920.0,85917.0,0.00011895]
[1741034887834,0.53278,85918.0,85917.0,9.5e-07]
[1741034888405,0.01825122,85952.0,85923.0,0.232765]
[1741034888586,0.232702,85947.0,85924.0,0.232761]
[1741034888789,0.04414737,85970.0,85927.0,0.3]
[1741034889032,0.00897007,85985.0,85929.0,0.3]
[1741034889376,0.41540535,85960.0,85928.0,0.1490009]
[1741034889585,0.00203619,85959.0,85928.0,0.1490009]
[1741034889758,0.232696,85949.0,85922.0,0.0489]
[1741034889963,0.232771,85921.0,85920.0,0.000339]
[1741034890540,0.232767,85923.0,85920.0,0.000339]
[1741034890739,0.232771,85921.0,85920.0,0.000339]
[1741034891290,0.232771,85921.0,85891.0,0.1490009]
[1741034891291,0.232812,85907.0,85874.0,0.0129893]
[1741034891466,0.232826,85901.0,85900.0,9.5e-07]
[1741034891699,0.532826,85901.0,85900.0,9.5e-07]
[1741034891907,0.232855,85890.0,85889.0,1.5e-07]
[1741034892138,0.232855,85890.0,85874.0,0.0129893]
[1741034892310,0.232896,85875.0,85874.0,0.00894865]
[1741034892512,0.232888,85879.0,85874.0,0.00894865]
[1741034892732,0.41540535,85884.0,85874.0,0.00894865]
[1741034892855,0.05802503,85959.0,85874.0,0.00894865]
[1741034892856,0.41540535,85910.0,85881.0,0.232879]
[1741034893063,0.41540535,85910.0,85876.0,0.3]
[1741034893274,0.00203733,85909.0,85878.0,0.3]
[1741034893474,0.232832,85899.0,85881.0,0.232878]
[1741034893719,0.00011853,85910.0,85878.0,0.3]
[1741034893923,0.00011853,85910.0,85880.0,0.3]
[1741034894269,0.00011853,85910.0,85909.0,0.657504]
[1741034894469,0.0475419,85920.0,85909.0,0.657504]
[1741034894470,0.0475419,85920.0,85919.0,0.532777]
[1741034894589,0.41540535,85950.0,85909.0,0.8140009]
[1741034894784,0.00203624,85949.0,85910.0,0.5403]
[1741034894987,0.232736,85934.0,85913.0,0.232791]
[1741034895241,0.232745,85931.0,85910.0,0.232801]
[1741034895412,0.41540535,85940.0,85910.0,0.232801]
[1741034895612,0.41540535,85930.0,85909.0,0.1247]
[1741034896079,0.41540535,85920.0,85894.0,0.082]
[1741034896280,0.41540535,85930.0,85894.0,0.082]
[1741034896411,0.0020369,85929.0,85894.0,0.082]
[1741034896616,0.41540535,85920.0,85894.0,0.082]
[1741034896872,0.41540535,85930.0,85894.0,0.082]
[1741034897268,0.232734,85935.0,85896.0,0.3]
[1741034897466,0.232741,85933.0,85912.0,0.232794]
[1741034897669,0.232749,85930.0,85912.0,0.232794]
[1741034897830,0.23276,85926.0,85913.0,0.3]
[1741034898032,0.41540535,85930.0,85895.0,0.773141]
[1741034898227,0.3,85951.0,85895.0,0.5403]
[1741034898477,0.3,85949.0,85897.0,0.3]
[1741034898675,0.23278,85918.0,85898.0,0.232832]
[1741034898849,0.41540535,85930.0,85897.0,0.3]
[1741034899054,0.00203699,85929.0,85894.0,0.08211853]
[1741034899250,0.41540535,85940.0,85894.0,0.08211853]
[1741034899513,0.41540535,85930.0,85897.0,0.232834]
[1741034899720,0.41540535,85920.0,85894.0,0.08211853]
[1741034899899,0.232837,85897.0,85894.0,0.00011853]
[1741034900101,0.3,85919.0,85894.0,0.00011853]
[1741034900259,0.232842,85895.0,85894.0,0.00011853]
[1741034900460,0.41540535,85910.0,85894.0,0.00011853]
[1741034900664,0.00203738,85909.0,85894.0,0.00011853]
[1741034900857,0.23284,85896.0,85894.0,0.00011853]
[1741034901063,0.232842,85895.0,85894.0,0.00011853]
[1741034901366,0.3,85919.0,85894.0,0.00011853]
[1741034901683,0.232753,85928.0,85909.0,0.232802]
[1741034901884,0.232695,85950.0,85931.0,0.232744]
[1741034902146,0.04705013,85958.0,85917.0,0.3]
[1741034902343,0.00203615,85969.0,85915.0,0.3]
[1741034902525,0.00203615,85969.0,85913.0,0.0783]
[1741034902526,0.232669,85959.0,85931.0,0.232742]
[1741034902847,0.00203608,85958.0,85916.0,0.6893009]
[1741034902975,0.00203608,85958.0,85889.0,0.1]
[1741034902976,0.41540535,85940.0,85898.0,0.5403]
[1741034903186,0.348996,85961.0,85895.0,0.5403]
[1741034903405,0.00011897,85940.0,85918.0,0.1]
[1741034903593,0.00011897,85940.0,85910.0,0.41540535]
[1741034903594,0.015549,85972.0,85939.0,0.4299]
[1741034903818,0.01566795,85972.0,85971.0,0.532636]
[1741034904022,0.01566795,85972.0,85971.0,1.3514369]
[1741034904422,0.01566795,85972.0,85971.0,1.3671049]
[1741034904634,0.00011895,85972.0,85971.0,1.4671049]
[1741034904834,0.015549,85990.0,85989.0,0.3]
[1741034905044,0.0159454,85990.0,85989.0,0.4490009]
[1741034905249,0.0159454,85990.0,85989.0,0.6815879]
[1741034905855,0.0159454,85990.0,85989.0,0.4490009]
[1741034906058,0.0159454,85990.0,85989.0,0.1490009]
[1741034906263,0.0159454,85990.0,85989.0,0.3815879]
[1741034906462,0.10297033,85995.0,85994.0,0.532574]
[1741034906811,0.015549,86008.0,86007.0,0.532539]
[1741034906940,0.015549,86043.0,86024.0,0.532493]
[1741034907154,0.01566789,86025.0,86024.0,1.2217939]
[1741034907498,0.015549,86043.0,86042.0,0.532444]
[1741034907666,0.015549,86043.0,86042.0,0.4490009]
[1741034907865,0.015549,86043.0,86042.0,0.6814449]
[1741034908066,0.015549,86043.0,86042.0,0.1490009]
[1741034908280,0.015549,86043.0,86042.0,0.3814449]
[1741034908624,0.015549,86043.0,86042.0,0.6814449]
[1741034908760,0.015549,86043.0,86042.0,0.4490009]
[1741034908962,0.015549,86043.0,86042.0,0.6814449]
[1741034909592,0.015549,86043.0,86042.0,1.2217449]
[1741034910285,0.015549,86043.0,86042.0,0.9893009]
[1741034910483,0.015549,86043.0,86042.0,0.4490009]
[1741034910722,0.015549,86043.0,86011.0,0.0812]
[1741034910899,0.015549,86043.0,86011.0,0.3812]
[1741034911276,0.00203378,86042.0,86012.0,0.1490009]
[1741034911473,0.00203397,86041.0,86012.0,0.1490009]
[1741034911605,0.015549,86043.0,86013.0,0.232522]
[1741034911806,0.232472,86032.0,86014.0,0.3]
[1741034912008,0.232493,86024.0,86014.0,0.3]
[1741034912234,0.015549,86043.0,86013.0,0.3]
[1741034912446,0.015549,86043.0,86015.0,0.1490009]
[1741034912655,0.015549,86043.0,86026.0,0.232487]
[1741034912988,0.015549,86043.0,86028.0,0.232481]
[1741034913189,0.015549,86043.0,86029.0,0.232479]
[1741034913405,0.015549,86043.0,86032.0,0.3]
[1741034913780,0.015549,86043.0,86033.0,0.1490009]
[1741034913959,0.015549,86043.0,86034.0,0.3]
[1741034914340,0.0157187,86043.0,86034.0,0.3]
[1741034914541,0.232503,86021.0,86011.0,0.6893009]
[1741034914771,0.232454,86039.0,86012.0,0.232525]
[1741034914968,0.0157187,86043.0,86014.0,0.3]
[1741034915172,0.0157187,86043.0,86011.0,0.00011889]
[1741034915173,0.00203405,86042.0,86015.0,0.1490009]
[1741034915576,0.232508,86019.0,86015.0,0.1490009]
[1741034915775,0.2481617,86043.0,86011.0,0.00011889]
[1741034915974,0.232499,86022.0,86011.0,0.00011889]
[1741034916135,0.3,86042.0,86011.0,0.00011889]
[1741034916337,0.232502,86021.0,86011.0,0.00011889]
[1741034916631,0.23249,86026.0,86011.0,0.00011889]
[1741034916746,0.0157187,86043.0,86011.0,0.00011889]
[1741034916747,0.0157187,86043.0,86011.0,0.38164679]
[1741034916951,0.00203423,86042.0,86011.0,0.14911979]
[1741034917155,0.0157187,86043.0,86011.0,0.14911979]
[1741034917353,0.0157187,86043.0,86014.0,0.3]
[1741034917577,0.0157187,86043.0,86016.0,0.3]
[1741034917859,0.232452,86040.0,86018.0,0.3]
[1741034918090,0.232457,86038.0,86018.0,0.3]
[1741034918290,0.23245,86040.0,86020.0,0.3]
[1741034918493,0.0157187,86043.0,86021.0,0.1490009]
[1741034918692,0.00203415,86042.0,86021.0,0.1490009]
[1741034918894,0.232506,86019.0,86012.0,0.1490009]
[1741034919094,0.232522,86013.0,86011.0,0.00011889]
[1741034919338,0.0157187,86043.0,86011.0,0.00011889]
[1741034919659,0.00203455,86042.0,86011.0,0.00011889]
[1741034919862,0.0020344,86042.0,86011.0,0.14911979]
[1741034920141,0.232525,86012.0,86011.0,0.00011889]
[1741034920882,0.232509,86018.0,86011.0,0.00011889]
[1741034921090,0.0467,86030.0,86011.0,0.00011889]
[1741034921341,0.232514,86017.0,86011.0,0.00011889]
[1741034921484,0.0157187,86043.0,86011.0,0.00011889]
[1741034921689,0.232522,86014.0,86011.0,0.00011889]
[1741034922033,0.232525,86012.0,86011.0,0.00011889]
[1741034922231,0.23256,86000.0,85980.0,0.23261]
[1741034922426,0.00011874,86000.0,85988.0,0.23259]
[1741034922599,0.00011874,86000.0,85984.0,0.3]
[1741034922969,0.00011874,86000.0,85985.0,0.66041978]
[1741034923111,0.00011874,86000.0,85999.0,0.53256]
[1741034923317,0.00011874,86000.0,85999.0,1.26867978]
[1741034923521,0.0157187,86043.0,86000.0,0.3]
[1741034923722,0.01583755,86043.0,86011.0,0.3]
[1741034924131,0.01583755,86043.0,86032.0,0.3]
[1741034924340,0.01583755,86043.0,86033.0,0.12011978]
[1741034924787,0.01583755,86043.0,86040.0,0.232449]
[1741034924934,0.01583755,86043.0,86042.0,0.532444]
[1741034925135,0.01583755,86043.0,86042.0,1.19286378]
[1741034926227,5e-08,86049.0,86048.0,0.532428]
[1741034926381,0.0003396,86062.0,86059.0,0.532398]
[1741034926707,0.0003396,86062.0,86059.0,1.19281778]
[1741034929117,0.0003396,86062.0,86059.0,0.96041978]
[1741034929273,0.0003396,86062.0,86059.0,1.19281778]
[1741034929678,0.0003396,86062.0,86059.0,0.96041978]
[1741034929877,0.0003396,86062.0,86059.0,1.19281778]
[1741034931140,0.0003396,86062.0,86059.0,0.96041978]
[1741034931517,0.0003396,86062.0,86059.0,0.65251778]
[1741034933039,0.0003396,86062.0,86059.0,0.12011978]
[1741034933209,0.0003396,86062.0,86049.0,0.12011978]
[1741034933628,0.0003396,86062.0,86059.0,0.232398]
[1741034935338,0.0003396,86062.0,86059.0,1.26871778]
[1741034935948,6e-07,86062.0,86061.0,0.232393]
[1741034936156,6e-07,86062.0,86061.0,0.687793]
[1741034937145,6e-07,86062.0,86061.0,1.34821278]
[1741034937533,6e-07,86062.0,86061.0,1.44821278]
[1741034937734,6e-07,86062.0,86061.0,1.34821278]
[1741034939406,0.28233247,86128.0,86094.0,0.232301]
[1741034939605,0.00203232,86127.0,86095.0,0.12011978]
[1741034939807,0.00039625,86128.0,86102.0,0.232281]
[1741034940017,0.00203215,86127.0,86095.0,0.12011978]
[1741034940851,0.00203209,86126.0,86095.0,0.12011978]
[1741034941576,0.23222,86125.0,86095.0,0.12011978]
[1741034941727,0.00203237,86124.0,86083.0,0.12011978]
[1741034941904,0.3,86119.0,86083.0,0.12011978]
[1741034942142,0.232242,86117.0,86083.0,0.12011978]
[1741034942353,0.232296,86097.0,86083.0,0.12011978]
[1741034942547,0.232307,86093.0,86083.0,0.12011978]
[1741034942794,0.232331,86084.0,86076.0,0.5403]
[1741034942996,0.00203301,86083.0,86051.0,0.5403]
[1741034943200,0.232409,86056.0,86052.0,0.12011978]
[1741034943427,0.232356,86075.0,86052.0,0.12011978]
[1741034943656,0.00039625,86075.0,86052.0,0.12011978]
[1741034944323,0.232399,86059.0,86052.0,0.12011978]
[1741034944699,0.00039625,86075.0,86052.0,0.12011978]
[1741034945205,0.348567,86067.0,86042.0,0.0003388]
[1741034945406,0.23239,86063.0,86042.0,0.0003388]
[1741034945651,0.232424,86050.0,86042.0,0.0003388]
[1741034945909,0.00039625,86075.0,86042.0,0.0003388]
[1741034945910,0.232441,86043.0,86042.0,0.0003388]
[1741034946431,0.232353,86076.0,86042.0,0.0003388]
[1741034946629,1.15829862,86131.0,86042.0,0.0003388]
[1741034946630,0.232332,86084.0,86044.0,0.3]
[1741034946836,0.04658163,86084.0,86050.0,0.41280183]
[1741034947034,0.00039625,86084.0,86055.0,0.3]
[1741034947239,0.00039625,86084.0,86075.0,0.232354]
[1741034947464,0.00039625,86084.0,86076.0,0.00162623]
[1741034947776,0.00039625,86084.0,86076.0,0.12011978]
[1741034948187,0.27762988,86094.0,86076.0,0.12011978]
[1741034948392,0.00011878,86094.0,86077.0,0.30162623]
[1741034948642,0.00011878,86094.0,86076.0,0.12011978]
[1741034949117,0.23235,86077.0,86076.0,0.12011978]
[1741034949876,0.3,86104.0,86045.0,0.12011978]
[1741034949877,0.48927523,86090.0,86045.0,0.12011978]
[1741034950076,0.0766,86090.0,86046.0,0.00162663]
[1741034950213,0.232331,86084.0,86063.0,0.232386]
[1741034950412,0.00882408,86094.0,86064.0,0.00162646]
[1741034950618,0.232343,86080.0,86064.0,0.00162646]
[1741034950820,0.00155271,86079.0,86063.0,0.12011978]
[1741034951041,0.232385,86064.0,86063.0,0.12011978]
[1741034951251,0.348511,86081.0,86051.0,0.12079223]
[1741034951458,0.0088747,86094.0,86052.0,0.3]
[1741034951459,0.0001694,86094.0,86052.0,0.3]
[1741034951752,0.0001694,86094.0,86055.0,0.0817]
[1741034951951,0.0001694,86094.0,86069.0,0.3]
[1741034952085,0.0001694,86094.0,86071.0,0.3]
[1741034952284,0.00028818,86094.0,86093.0,0.232306]
[1741034952519,0.00028818,86094.0,86093.0,0.35147154]
[1741034952886,0.00028818,86094.0,86093.0,0.11916554]
[1741034953334,0.00028818,86094.0,86093.0,0.35147154]
[1741034953749,0.00028818,86094.0,86093.0,0.89177154]
[1741034954040,0.00028818,86094.0,86093.0,0.93917154]
[1741034954272,1.8e-07,86094.0,86093.0,0.93917154]
[1741034954403,0.01488838,86131.0,86093.0,1.00686554]
[1741034954779,0.01488838,86131.0,86094.0,0.66109096]
[1741034954780,0.232265,86109.0,86094.0,0.66109096]
[1741034954986,0.232253,86113.0,86094.0,0.35146854]
[1741034955202,0.01500711,86131.0,86095.0,0.3]
[1741034955413,0.232295,86098.0,86094.0,0.11916554]
[1741034955742,0.232327,86086.0,86078.0,0.11916554]
[1741034955915,0.232318,86089.0,86078.0,0.11916554]
[1741034956166,0.232236,86119.0,86078.0,0.11916554]
[1741034956389,0.00155271,86118.0,86078.0,0.12079175]
[1741034956607,0.00155271,86118.0,86078.0,0.11916554]
[1741034956832,0.232292,86099.0,86079.0,0.00162621]
[1741034957068,0.02358493,86131.0,86080.0,0.11916554]
[1741034957284,0.02358493,86131.0,86078.0,0.00011878]
[1741034957285,0.232261,86110.0,86082.0,0.3]
[1741034957522,0.232209,86129.0,86083.0,0.00162585]
[1741034957747,0.232209,86129.0,86081.0,0.65946554]
[1741034957748,0.3,86119.0,86081.0,0.11916554]
[1741034957980,0.232311,86092.0,86081.0,0.11916554]
[1741034958220,0.3,86119.0,86081.0,0.11916554]
[1741034958460,0.232318,86089.0,86078.0,0.00011878]
[1741034958684,0.232344,86079.0,86078.0,0.00011878]
[1741034958906,0.0483,86105.0,86078.0,0.00011878]
[1741034959125,0.232296,86097.0,86078.0,0.00174489]
[1741034959364,0.232286,86101.0,86082.0,0.232336]
[1741034959565,0.232288,86100.0,86083.0,0.00162611]
[1741034959808,0.03956922,86101.0,86083.0,0.00162611]
[1741034960056,0.232344,86079.0,86078.0,0.00011878]
[1741034960901,0.27168389,86079.0,86078.0,7.8e-07]
[1741034961043,0.57168389,86079.0,86078.0,7.8e-07]
[1741034962317,0.232372,86069.0,86051.0,0.232417]
[1741034962521,0.232366,86071.0,86052.0,0.09268017]
[1741034962764,0.41470851,86070.0,86052.0,0.09179317]
[1741034962986,0.3398782,86079.0,86052.0,0.09179317]
[1741034963194,0.00203373,86078.0,86052.0,0.09179317]
[1741034963390,0.232414,86053.0,86052.0,0.09179317]
[1741034964474,0.232441,86043.0,86026.0,0.09179317]
[1741034964926,0.232441,86043.0,86042.0,0.00073505]
[1741034965173,0.3,86066.0,86042.0,0.00073505]
[1741034965354,0.0483,86089.0,86042.0,0.09252822]
[1741034965355,0.03928043,86079.0,86042.0,0.09252822]
[1741034965552,0.232347,86078.0,86055.0,0.232409]
[1741034965758,0.0089541,86092.0,86056.0,0.00088669]
[1741034965987,0.232389,86063.0,86057.0,0.09179317]
[1741034966221,0.232401,86058.0,86045.0,0.09179317]
[1741034966411,0.232398,86060.0,86045.0,0.09179317]
[1741034966550,0.232409,86056.0,86045.0,0.09179317]
[1741034966749,0.232398,86060.0,86045.0,0.09179317]
[1741034966951,0.33963877,86079.0,86045.0,0.09179317]
[1741034967175,0.00203357,86078.0,86045.0,0.09179317]
[1741034967531,0.232403,86058.0,86046.0,0.00088747]
[1741034967732,0.33963877,86079.0,86046.0,0.00088747]
[1741034967733,0.232367,86071.0,86046.0,0.00088736]
[1741034967921,0.232388,86063.0,86046.0,0.00088736]
[1741034968123,0.33963877,86079.0,86046.0,0.00088736]
[1741034968124,0.03963877,86079.0,86046.0,0.00088736]
[1741034968361,0.3,86076.0,86045.0,0.09179317]
[1741034968643,0.348502,86083.0,86045.0,0.09179317]
[1741034968644,0.232388,86063.0,86046.0,0.00088751]
[1741034968883,0.3,86077.0,86048.0,0.232426]
[1741034969054,0.232402,86058.0,86045.0,0.09179317]
[1741034969256,0.232399,86059.0,86045.0,0.09179317]
[1741034969460,0.00203357,86058.0,86045.0,0.09179317]
[1741034969659,0.232394,86061.0,86045.0,0.09179317]
[1741034969836,0.232366,86071.0,86045.0,0.09179317]
[1741034970037,0.04080261,86079.0,86045.0,0.09179317]
[1741034970248,0.232387,86064.0,86047.0,0.232428]
[1741034970427,0.3,86080.0,86048.0,0.00088757]
[1741034970636,0.232372,86069.0,86049.0,0.00088731]
[1741034970832,0.232384,86065.0,86046.0,0.00088725]
[1741034971031,0.232392,86062.0,86046.0,0.00088725]
[1741034971281,0.33926053,86079.0,86045.0,0.09179317]
[1741034971490,0.232433,86046.0,86045.0,0.09179317]
[1741034971677,0.232441,86043.0,86042.0,0.00073505]
[1741034972272,0.3,86059.0,86032.0,0.06352821]
[1741034972656,0.00203389,86058.0,86032.0,0.00011885]
[1741034972878,0.0020338,86067.0,86032.0,0.06364706]
[1741034973059,0.232398,86059.0,86032.0,0.06364706]
[1741034973298,0.232468,86033.0,86032.0,0.06364706]
[1741034973547,0.532468,86033.0,86032.0,8.5e-07]
[1741034974211,0.03944574,86033.0,86032.0,8.5e-07]
[1741034974418,0.1,86083.0,86032.0,8.5e-07]
[1741034974419,0.01525189,86048.0,86033.0,0.3]
[1741034974631,0.06510038,86045.0,86044.0,0.232439]
[1741034974829,0.06510038,86045.0,86032.0,0.60382906]
[1741034975033,0.06510038,86045.0,86033.0,0.232467]
[1741034975256,0.06510038,86045.0,86032.0,0.60382906]
[1741034975257,0.232468,86033.0,86032.0,8.5e-07]
[1741034977224,0.3,86045.0,86008.0,0.00243984]
[1741034977433,0.00011865,86045.0,86009.0,0.60545593]
[1741034977633,0.00011865,86045.0,86011.0,0.345]
[1741034977833,0.00011865,86045.0,86041.0,0.232446]
[1741034978039,0.232444,86042.0,86041.0,0.06352821]
[1741034978509,0.00011865,86045.0,86013.0,0.06352821]